bitfinex-derivatives/quotes_BTCF0:USTF0_20240910
["timestamp","ask_amount","ask_price","bid_price","bid_amount"]
[1726000096503,0.17327,57710.0,57709.0,0.013]
[1726000096711,0.23387,57710.0,57709.0,0.013]
[1726000099412,0.23387,57710.0,57709.0,0.12170783]
[1726000099612,0.23387,57710.0,57709.0,0.09955123]
[1726000099912,0.23387,57710.0,57709.0,0.013]
[1726000101105,0.23387,57710.0,57693.0,0.02005208]
[1726000101106,0.173328,57691.0,57690.0,0.0047]
[1726000101307,0.086647,57702.0,57689.0,0.06921698]
[1726000101608,0.10282227,57708.0,57694.0,0.05191121]
[1726000101609,0.057,57701.0,57694.0,0.05191121]
[1726000101815,0.057,57701.0,57696.0,0.05190874]
[1726000102003,0.057,57701.0,57697.0,0.05190874]
[1726000102209,0.60661,57700.0,57691.0,0.06921698]
[1726000102509,0.086659,57694.0,57691.0,0.06921698]
[1726000102710,0.086659,57694.0,57692.0,0.06921698]
[1726000103112,0.086659,57694.0,57693.0,0.05183482]
[1726000104112,0.089659,57694.0,57692.0,0.05183482]
[1726000104516,0.089659,57694.0,57693.0,0.05183482]
[1726000105111,0.1092664,57694.0,57693.0,0.05183482]
[1726000105317,0.0226074,57694.0,57692.0,0.35587898]
[1726000105623,0.0226074,57694.0,57693.0,0.0553]
[1726000105809,0.0226074,57694.0,57693.0,0.24666403]
[1726000105810,0.0276074,57694.0,57693.0,0.24666403]
[1726000106216,0.0236074,57694.0,57693.0,0.24666403]
[1726000106411,0.0326074,57694.0,57693.0,0.24744783]
[1726000106606,0.0326074,57694.0,57693.0,0.16114472]
[1726000106809,0.0326074,57694.0,57693.0,0.24744844]
[1726000107115,0.0326074,57694.0,57693.0,0.24744765]
[1726000107314,0.0326074,57694.0,57693.0,0.247449]
[1726000107913,0.0296074,57694.0,57693.0,0.247449]
[1726000108117,0.0296074,57694.0,57693.0,1.36780572]
[1726000108413,0.0296074,57694.0,57693.0,0.33410759]
[1726000108709,0.086676,57683.0,57682.0,0.0517936]
[1726000108912,0.00870087,57683.0,57681.0,0.06905086]
[1726000109108,0.086664,57691.0,57677.0,0.086685]
[1726000109109,0.086679,57681.0,57679.0,0.06905086]
[1726000109524,0.086679,57681.0,57676.0,0.0563]
[1726000109525,0.086679,57681.0,57680.0,0.05176038]
[1726000109919,0.08668,57680.0,57679.0,0.05176038]
[1726000110118,0.2,57682.0,57678.0,0.05176038]
[1726000110119,0.086682,57679.0,57678.0,0.05176038]
[1726000110719,0.086683,57678.0,57676.0,0.0563]
[1726000111115,0.086678,57682.0,57678.0,0.086683]
[1726000111325,0.086678,57682.0,57679.0,0.05171621]
[1726000111818,0.086678,57682.0,57679.0,0.10821621]
[1726000112909,0.087678,57682.0,57679.0,0.0605]
[1726000114120,0.088678,57682.0,57679.0,0.0605]
[1726000114830,0.086679,57681.0,57679.0,0.0605]
[1726000115920,0.086679,57681.0,57679.0,0.0565]
[1726000116223,0.086679,57681.0,57679.0,0.0605]
[1726000116224,0.087679,57681.0,57679.0,0.0605]
[1726000116423,0.001,57681.0,57679.0,0.0605]
[1726000116625,0.001,57681.0,57680.0,0.6068]
[1726000116918,0.02118953,57682.0,57681.0,0.086679]
[1726000116919,0.02018953,57682.0,57681.0,0.086679]
[1726000117124,0.086668,57688.0,57680.0,0.001]
[1726000117333,0.086668,57688.0,57679.0,0.0615]
[1726000117626,0.086666,57690.0,57683.0,0.2]
[1726000117829,0.086668,57689.0,57687.0,0.086669]
[1726000118122,0.086668,57689.0,57688.0,0.0579]
[1726000118717,0.086668,57689.0,57688.0,0.144568]
[1726000118917,0.089668,57689.0,57688.0,0.144568]
[1726000119417,0.089668,57689.0,57688.0,0.664608]
[1726000119617,0.003,57689.0,57688.0,0.664608]
[1726000119816,0.004,57689.0,57688.0,1.264608]
[1726000120227,0.01,57689.0,57688.0,1.264608]
[1726000121632,0.01,57689.0,57688.0,1.33365886]
[1726000121928,0.22058721,57699.0,57692.0,0.086661]
[1726000122117,0.22058721,57699.0,57693.0,0.0556]
[1726000122319,0.086658,57695.0,57694.0,0.086659]
[1726000123724,0.092658,57695.0,57694.0,0.087659]
[1726000123929,0.006,57695.0,57694.0,0.087659]
[1726000124117,0.014,57695.0,57694.0,0.13936425]
[1726000124321,0.014,57695.0,57694.0,0.13941744]
[1726000124530,0.014,57695.0,57694.0,0.087659]
[1726000124730,0.100658,57695.0,57694.0,0.087659]
[1726000125821,0.094658,57695.0,57694.0,0.086659]
[1726000126021,0.100658,57695.0,57694.0,0.087659]
[1726000127121,0.100658,57695.0,57694.0,0.15670986]
[1726000127718,0.014,57695.0,57694.0,0.07005086]
[1726000127926,0.387316,57695.0,57694.0,0.001]
[1726000129125,0.387316,57695.0,57694.0,0.07005086]
[1726000129727,0.473974,57695.0,57694.0,0.001]
[1726000130021,0.387316,57695.0,57694.0,0.001]
[1726000130828,0.300658,57695.0,57694.0,0.001]
[1726000131030,0.387316,57695.0,57694.0,0.001]
[1726000132628,0.300658,57695.0,57694.0,0.001]
[1726000132930,0.300658,57695.0,57694.0,0.05284618]
[1726000133126,0.300658,57695.0,57694.0,0.001]
[1726000134430,0.100658,57695.0,57694.0,0.001]
[1726000134626,0.100658,57695.0,57694.0,0.147559]
[1726000134833,0.014,57695.0,57694.0,0.76885529]
[1726000135532,0.014,57695.0,57694.0,0.24885529]
[1726000135726,0.014,57695.0,57694.0,0.76885529]
[1726000135926,0.014,57695.0,57694.0,0.24885529]
[1726000136528,0.014,57695.0,57694.0,0.147559]
[1726000136932,0.06334766,57706.0,57694.0,0.147559]
[1726000136933,0.004,57707.0,57706.0,0.086641]
[1726000137124,0.004,57707.0,57705.0,0.2]
[1726000137125,0.02023749,57707.0,57705.0,0.2]
[1726000137322,0.08663,57714.0,57706.0,0.1166]
[1726000137529,0.08663,57714.0,57712.0,0.086631]
[1726000137736,0.08663,57714.0,57707.0,0.0583]
[1726000137935,0.08663,57714.0,57711.0,0.086634]
[1726000138131,0.28663,57714.0,57711.0,0.086634]
[1726000138332,0.086634,57711.0,57710.0,0.086635]
[1726000138640,0.286634,57711.0,57710.0,0.086635]
[1726000139733,0.300634,57711.0,57710.0,0.087635]
[1726000140231,0.214,57711.0,57710.0,0.087635]
[1726000141438,0.228,57711.0,57710.0,0.088635]
[1726000141637,0.314634,57711.0,57710.0,0.088635]
[1726000143138,0.33431855,57711.0,57710.0,0.088635]
[1726000144048,0.24768455,57711.0,57710.0,0.088635]
[1726000144349,0.04768455,57711.0,57710.0,0.088635]
[1726000150954,0.03368455,57711.0,57710.0,0.089635]
[1726000151248,0.01968455,57711.0,57710.0,0.088635]
[1726000151453,0.086628,57715.0,57714.0,0.086629]
[1726000151652,0.11471469,57715.0,57714.0,0.086629]
[1726000151947,0.13500146,57715.0,57714.0,0.086629]
[1726000153055,0.13900146,57715.0,57714.0,0.086629]
[1726000154251,0.24182369,57715.0,57714.0,0.086629]
[1726000155152,0.23882369,57715.0,57714.0,0.086629]
[1726000155337,0.23882369,57715.0,57714.0,0.091629]
[1726000155338,0.23782369,57715.0,57714.0,0.091629]
[1726000156144,0.13500142,57715.0,57714.0,0.091629]
[1726000156347,0.23782369,57715.0,57714.0,0.091629]
[1726000156747,0.15119569,57715.0,57714.0,0.091629]
[1726000156948,0.04837342,57715.0,57714.0,0.091629]
[1726000158153,0.15119569,57715.0,57714.0,0.091629]
[1726000158358,0.15119569,57715.0,57714.0,0.089629]
[1726000158546,0.15119569,57715.0,57714.0,0.005]
[1726000158746,0.02028677,57715.0,57714.0,0.091629]
[1726000159049,0.086625,57717.0,57716.0,0.086626]
[1726000160161,0.087625,57717.0,57716.0,0.086626]
[1726000160757,0.087625,57717.0,57716.0,0.087626]
[1726000161461,0.10772706,57717.0,57716.0,0.086626]
[1726000161657,0.10772706,57717.0,57716.0,0.087626]
[1726000164254,0.10772706,57717.0,57716.0,0.086626]
[1726000164556,0.10772706,57717.0,57716.0,0.087626]
[1726000165155,0.10772706,57717.0,57716.0,0.1394749]
[1726000166155,0.10772706,57717.0,57716.0,0.087626]
[1726000166450,0.001,57717.0,57716.0,0.44353194]
[1726000166655,0.09061,57727.0,57726.0,0.086611]
[1726000166850,0.09061,57727.0,57721.0,0.086618]
[1726000166851,0.087484,57731.0,57730.0,0.086605]
[1726000167053,0.086604,57731.0,57730.0,0.086605]
[1726000167254,0.1064303,57731.0,57730.0,0.15587074]
[1726000167463,0.1064303,57731.0,57730.0,0.086605]
[1726000168458,0.1064303,57731.0,57730.0,0.1384743]
[1726000168762,0.1204303,57731.0,57730.0,0.1394743]
[1726000169261,0.1344303,57731.0,57730.0,0.1404743]
[1726000169475,0.1344303,57731.0,57730.0,0.088605]
[1726000173665,0.16250835,57731.0,57730.0,0.002]
[1726000173856,0.28468956,57731.0,57730.0,0.002]
[1726000174863,0.28468956,57731.0,57730.0,0.08733016]
[1726000176966,0.28468956,57731.0,57730.0,0.00072516]
[1726000176967,0.37129556,57731.0,57730.0,0.00072516]
[1726000177467,0.44514671,57731.0,57730.0,0.00026469]
[1726000178469,0.59005271,57731.0,57730.0,0.00026469]
[1726000178761,0.77884098,57731.0,57730.0,0.00026469]
[1726000178968,0.58840741,57731.0,57730.0,0.00026469]
[1726000180858,0.75958529,57731.0,57730.0,0.00026469]
[1726000181668,0.3659423,57731.0,57730.0,0.00026469]
[1726000182165,0.2793363,57731.0,57730.0,0.00026469]
[1726000185973,0.2210363,57731.0,57730.0,0.00026469]
[1726000188867,0.08661,57727.0,57726.0,0.14573891]
[1726000189067,0.17967578,57727.0,57726.0,0.14573891]
[1726000189268,0.23564699,57727.0,57726.0,0.14573891]
[1726000190068,0.24564699,57727.0,57726.0,0.14673891]
[1726000190267,0.25764699,57727.0,57726.0,0.14773891]
[1726000191470,0.3947306,57727.0,57726.0,0.14773891]
[1726000191665,0.25764699,57727.0,57726.0,0.14773891]
[1726000192266,0.3947306,57727.0,57726.0,0.14773891]
[1726000193278,0.39483056,57727.0,57726.0,0.14773891]
[1726000193476,0.25774695,57727.0,57726.0,0.14773891]
[1726000194171,0.37774695,57727.0,57726.0,0.14773891]
[1726000195872,0.22861,57727.0,57726.0,0.14773891]
[1726000197473,0.22861,57727.0,57726.0,0.21700465]
[1726000198077,0.10861,57727.0,57726.0,0.21700465]
[1726000198377,0.22861,57727.0,57726.0,0.21700465]
[1726000198571,0.22861,57727.0,57726.0,0.14773891]
[1726000200878,0.31522,57727.0,57726.0,0.07124906]
[1726000201186,0.173234,57722.0,57721.0,0.05193439]
[1726000201486,0.086623,57718.0,57717.0,0.05193439]
[1726000201780,0.086623,57718.0,57714.0,0.05193439]
[1726000201781,0.173256,57715.0,57714.0,0.05193439]
[1726000201987,0.206628,57715.0,57708.0,0.05194289]
[1726000202170,0.08664,57707.0,57702.0,0.05194289]
[1726000202374,0.12,57703.0,57700.0,0.05194289]
[1726000202586,0.08665,57700.0,57699.0,0.05194289]
[1726000202871,0.20665,57700.0,57699.0,0.05194289]
[1726000203076,0.086645,57704.0,57699.0,0.086652]
[1726000203273,0.086644,57705.0,57701.0,0.05194289]
[1726000203485,0.086634,57711.0,57701.0,0.05194289]
[1726000203486,0.121,57703.0,57701.0,0.05194289]
[1726000203876,0.121,57703.0,57700.0,0.009]
[1726000204079,0.001,57703.0,57700.0,0.009]
[1726000204888,0.087647,57703.0,57700.0,0.009]
[1726000205083,0.086647,57703.0,57699.0,0.086652]
[1726000205277,0.001,57700.0,57699.0,0.086652]
[1726000205680,0.086647,57702.0,57699.0,0.086652]
[1726000206390,0.001,57700.0,57699.0,0.086652]
[1726000208181,0.001,57700.0,57699.0,0.606572]
[1726000208689,0.01958172,57706.0,57705.0,0.086643]
[1726000208892,0.086641,57707.0,57705.0,0.086643]
[1726000209081,0.2,57709.0,57705.0,0.086643]
[1726000209888,0.086641,57706.0,57705.0,0.086643]
[1726000211682,0.087641,57706.0,57705.0,0.088643]
[1726000212290,0.3345,57720.0,57705.0,0.088643]
[1726000212291,0.3301,57720.0,57705.0,0.288643]
[1726000212491,0.3301,57720.0,57716.0,0.086626]
[1726000212693,0.02054082,57720.0,57716.0,0.086626]
[1726000212992,0.2,57718.0,57714.0,0.05173586]
[1726000213193,0.086631,57713.0,57712.0,0.086631]
[1726000213893,0.086631,57713.0,57712.0,0.13836686]
[1726000214088,0.001,57717.0,57709.0,0.12508115]
[1726000214089,0.087626,57717.0,57709.0,0.12508115]
[1726000214294,0.086629,57715.0,57714.0,0.13837071]
[1726000214591,0.086629,57715.0,57714.0,0.086629]
[1726000215196,0.086629,57715.0,57714.0,0.13837071]
[1726000215884,0.089629,57715.0,57714.0,0.13837071]
[1726000216481,0.091629,57715.0,57714.0,0.086629]
[1726000216986,0.091629,57715.0,57714.0,0.13837071]
[1726000217181,0.091629,57715.0,57714.0,0.086629]
[1726000217182,0.11216782,57715.0,57714.0,0.086629]
[1726000217484,0.086631,57713.0,57712.0,0.13837371]
[1726000218683,0.086631,57713.0,57712.0,0.13937371]
[1726000218885,0.087631,57713.0,57712.0,0.087632]
[1726000219994,0.001,57713.0,57712.0,0.087632]
[1726000221498,0.001,57713.0,57712.0,0.13937371]
[1726000225188,0.001,57713.0,57712.0,0.13943169]
[1726000225401,8.2e-07,57715.0,57712.0,0.001]
[1726000225589,0.004,57729.0,57728.0,0.086608]
[1726000225790,0.01973232,57730.0,57728.0,0.15566071]
[1726000225998,0.10299881,57737.0,57727.0,0.086609]
[1726000226197,0.02807834,57736.0,57727.0,0.086609]
[1726000226393,0.2,57730.0,57716.0,0.0635]
[1726000226593,0.086619,57721.0,57716.0,0.0595]
[1726000226797,0.286613,57725.0,57718.0,0.086623]
[1726000227000,0.286613,57725.0,57716.0,0.0595]
[1726000227001,0.286613,57725.0,57719.0,0.086622]
[1726000228099,0.02808249,57724.0,57719.0,0.086622]
[1726000230607,0.02808249,57724.0,57720.0,0.086619]
[1726000230805,0.03208249,57724.0,57720.0,0.086619]
[1726000231103,0.02808249,57723.0,57720.0,0.086619]
[1726000231305,0.02808249,57723.0,57717.0,0.057]
[1726000231499,0.011,57724.0,57723.0,0.086616]
[1726000232002,0.006,57724.0,57723.0,0.086616]
[1726000232211,0.01,57724.0,57723.0,0.086616]
[1726000232794,0.006,57724.0,57723.0,0.086616]
[1726000232999,0.013,57724.0,57723.0,0.086616]
[1726000233507,0.007,57724.0,57723.0,0.086616]
[1726000233809,0.016,57724.0,57723.0,0.086616]
[1726000234795,0.016,57724.0,57723.0,0.173232]
[1726000235499,0.016,57724.0,57723.0,0.229132]
[1726000235895,0.016,57724.0,57723.0,0.32945622]
[1726000236306,0.016,57724.0,57723.0,0.41578985]
[1726000237112,0.016,57724.0,57723.0,0.31546563]
[1726000237407,0.016,57724.0,57723.0,0.32919384]
[1726000237612,0.016,57724.0,57723.0,0.086616]
[1726000242215,0.016,57724.0,57723.0,0.17294963]
[1726000242814,0.016,57724.0,57723.0,0.27334446]
[1726000243009,0.016,57724.0,57723.0,0.18701083]
[1726000246413,0.016,57724.0,57723.0,0.27362683]
[1726000247515,0.086598,57735.0,57723.0,0.27362683]
[1726000247516,0.086598,57735.0,57734.0,0.086599]
[1726000247732,0.10715469,57735.0,57734.0,0.086599]
[1726000248027,0.02055669,57735.0,57734.0,0.086599]
[1726000248217,0.086593,57738.0,57737.0,0.086595]
[1726000250517,0.100593,57738.0,57737.0,0.087595]
[1726000251213,0.109593,57738.0,57737.0,0.088595]
[1726000252321,0.109593,57738.0,57737.0,0.002]
[1726000256725,0.196186,57738.0,57737.0,0.002]
[1726000257028,0.482779,57738.0,57737.0,0.002]
[1726000259230,0.282779,57738.0,57737.0,0.002]
[1726000263328,0.282779,57738.0,57737.0,0.05382434]
[1726000264023,0.36820265,57738.0,57737.0,0.002]
[1726000264836,0.48836793,57738.0,57737.0,0.002]
[1726000265025,0.36820265,57738.0,57737.0,0.002]
[1726000266526,0.48841334,57738.0,57737.0,0.002]
[1726000267424,0.48841549,57738.0,57737.0,0.002]
[1726000268125,0.48820265,57738.0,57737.0,0.002]
[1726000271035,0.196186,57738.0,57737.0,0.07109912]
[1726000271222,0.109593,57738.0,57737.0,0.30911853]
[1726000271630,0.109593,57738.0,57737.0,0.41269204]
[1726000271830,0.023,57738.0,57737.0,0.41269204]
[1726000272027,0.023,57738.0,57737.0,0.30911853]
[1726000272217,0.023,57738.0,57737.0,0.38911853]
[1726000274229,0.023,57738.0,57737.0,0.49290391]
[1726000276334,0.023,57738.0,57737.0,0.38911853]
[1726000276929,0.023,57738.0,57737.0,1.50871853]
[1726000277129,0.023,57738.0,57737.0,1.61250391]
[1726000277329,0.00882396,57748.0,57747.0,0.08658]
[1726000277330,0.09540196,57748.0,57747.0,0.08658]
[1726000277536,0.09540196,57748.0,57747.0,0.28658]
[1726000278139,0.09540196,57748.0,57747.0,0.15572182]
[1726000278341,0.01626972,57749.0,57748.0,0.086578]
[1726000278542,0.086565,57757.0,57748.0,0.24910533]
[1726000278840,0.086563,57759.0,57756.0,0.2]
[1726000279040,0.086563,57759.0,57758.0,0.086563]
[1726000279241,0.11462778,57759.0,57758.0,0.086563]
[1726000279633,0.086565,57757.0,57756.0,0.00096]
[1726000279829,0.086565,57757.0,57749.0,0.004]
[1726000279830,0.11963078,57757.0,57753.0,0.086569]
[1726000280030,0.11463078,57756.0,57754.0,0.086569]
[1726000280327,0.086568,57755.0,57754.0,0.086569]
[1726000280744,0.11463395,57755.0,57754.0,0.086569]
[1726000281248,0.086568,57755.0,57754.0,0.086569]
[1726000282247,0.086568,57755.0,57754.0,0.087569]
[1726000282832,0.091568,57755.0,57754.0,0.087569]
[1726000283134,0.099568,57755.0,57754.0,0.088569]
[1726000283443,0.099568,57755.0,57754.0,0.002]
[1726000284029,0.186136,57755.0,57754.0,0.002]
[1726000284230,0.21420367,57755.0,57754.0,0.002]
[1726000284431,0.21420367,57755.0,57754.0,0.00068551]
[1726000284632,0.086583,57745.0,57744.0,0.0625]
[1726000286144,0.091583,57745.0,57744.0,0.150084]
[1726000286437,0.100583,57745.0,57744.0,0.151084]
[1726000292038,0.11656511,57745.0,57744.0,0.151084]
[1726000292345,0.11656511,57745.0,57735.0,0.001]
[1726000292346,0.086595,57738.0,57735.0,0.001]
[1726000292641,0.2,57737.0,57736.0,0.150896]
[1726000293141,0.286595,57737.0,57736.0,0.150896]
[1726000294046,0.291595,57737.0,57736.0,0.150896]
[1726000294344,0.091595,57737.0,57736.0,0.150896]
[1726000295438,0.094595,57737.0,57736.0,0.150896]
[1726000296136,0.008,57737.0,57736.0,0.150896]
[1726000298449,0.094595,57737.0,57736.0,0.0643]
[1726000299538,0.094595,57737.0,57736.0,0.150896]
[1726000299733,0.008,57737.0,57736.0,0.150896]
[1726000300036,0.094595,57737.0,57736.0,0.150896]
[1726000301148,0.094595,57737.0,57736.0,0.33767003]
[1726000301446,0.094595,57737.0,57736.0,0.23731286]
[1726000301845,0.008,57737.0,57736.0,0.33766804]
[1726000302242,0.094595,57737.0,57736.0,0.33766804]
[1726000305239,0.094595,57737.0,57736.0,0.3376376]
[1726000305640,0.294595,57737.0,57736.0,0.17301286]
[1726000306442,0.094595,57737.0,57736.0,0.18693661]
[1726000308552,0.008,57737.0,57736.0,0.18693661]
[1726000310954,0.008,57737.0,57736.0,0.29072199]
[1726000311154,0.008,57737.0,57736.0,0.18693661]
[1726000311652,0.008,57737.0,57736.0,0.27353261]
[1726000311954,0.153672,57753.0,57744.0,0.086584]
[1726000311955,0.086583,57745.0,57744.0,0.086584]
[1726000312260,0.086583,57745.0,57744.0,0.18688637]
[1726000312446,0.086583,57745.0,57744.0,0.27333313]
[1726000313040,0.086583,57745.0,57744.0,0.18688637]
[1726000313760,0.098583,57745.0,57744.0,0.18888637]
[1726000316159,0.098583,57745.0,57744.0,0.088584]
[1726000316355,0.098583,57745.0,57744.0,0.002]
[1726000316356,0.298583,57745.0,57744.0,0.002]
[1726000316856,0.385166,57745.0,57744.0,0.002]
[1726000317958,0.298583,57745.0,57744.0,0.002]
[1726000320153,0.218583,57745.0,57744.0,0.002]
[1726000320654,0.012,57745.0,57744.0,0.088584]
[1726000320862,0.098583,57745.0,57744.0,0.088584]
[1726000321557,0.098583,57745.0,57744.0,0.002]
[1726000322948,0.098583,57745.0,57744.0,0.088584]
[1726000324252,0.098583,57745.0,57744.0,0.18905938]
[1726000324460,0.098583,57745.0,57744.0,0.29276836]
[1726000325859,0.012,57745.0,57744.0,0.18905938]
[1726000326055,0.01621617,57750.0,57749.0,0.086577]
[1726000326254,0.086558,57762.0,57754.0,0.086569]
[1726000326452,0.086558,57762.0,57744.0,0.13406]
[1726000326453,0.086562,57759.0,57757.0,0.08650011]
[1726000326668,0.086562,57759.0,57756.0,0.08650011]
[1726000327051,0.173132,57756.0,57755.0,0.08650011]
[1726000327258,0.173132,57756.0,57752.0,0.08650011]
[1726000327259,0.2,57756.0,57752.0,0.08650011]
[1726000327449,0.2,57756.0,57754.0,0.087569]
[1726000327450,0.086568,57755.0,57754.0,0.087569]
[1726000328066,0.086568,57755.0,57754.0,0.086569]
[1726000328763,0.091568,57755.0,57754.0,0.087569]
[1726000329654,0.091568,57755.0,57754.0,0.001]
[1726000329959,0.178136,57755.0,57754.0,0.07115294]
[1726000330954,0.091568,57755.0,57754.0,0.07115294]
[1726000332363,0.091568,57755.0,57754.0,0.002]
[1726000335064,0.291568,57755.0,57754.0,0.07115294]
[1726000335961,0.378136,57755.0,57754.0,0.07115294]
[1726000336264,0.378136,57755.0,57754.0,0.002]
[1726000337660,0.091568,57755.0,57754.0,0.002]
[1726000337968,0.291568,57755.0,57754.0,0.002]
[1726000339166,0.37687318,57755.0,57754.0,0.002]
[1726000340773,0.37687318,57755.0,57754.0,0.088569]
[1726000340774,0.03306817,57755.0,57754.0,0.088569]
[1726000341469,0.03306817,57755.0,57754.0,0.175138]
[1726000341679,0.01637559,57760.0,57759.0,0.086562]
[1726000341863,0.10287009,57760.0,57759.0,0.086562]
[1726000342170,0.11462405,57760.0,57759.0,0.086562]
[1726000342557,0.11462405,57760.0,57755.0,0.1302]
[1726000342558,0.086566,57757.0,57756.0,0.086565]
[1726000342770,0.31463005,57757.0,57756.0,0.086565]
[1726000343774,0.31463005,57757.0,57756.0,0.087565]
[1726000344073,0.31463005,57757.0,57756.0,0.088565]
[1726000345977,0.11463005,57757.0,57756.0,0.088565]
[1726000346370,0.086566,57757.0,57756.0,0.15771794]
[1726000347559,0.086566,57757.0,57756.0,0.088565]
[1726000349468,0.2,57759.0,57758.0,0.086563]
[1726000349774,0.01580861,57762.0,57760.0,0.086559]
[1726000349775,0.086559,57761.0,57760.0,0.086559]
[1726000349969,0.01580861,57762.0,57761.0,0.086559]
[1726000349970,0.086557,57762.0,57761.0,0.086559]
[1726000350865,0.01618356,57763.0,57762.0,0.173114]
[1726000351176,0.10285924,57771.0,57770.0,0.086544]
[1726000351372,0.10285924,57771.0,57770.0,0.13836702]
[1726000352065,0.10285924,57771.0,57770.0,0.05182302]
[1726000352271,0.10285924,57771.0,57769.0,0.05182302]
[1726000353070,0.30285924,57771.0,57770.0,0.001]
[1726000353580,0.21631524,57771.0,57770.0,0.087545]
[1726000353767,0.21631524,57771.0,57770.0,0.088545]
[1726000353970,0.21631524,57771.0,57770.0,0.087545]
[1726000354375,0.38878838,57771.0,57770.0,0.087545]
[1726000354679,0.12021978,57775.0,57770.0,1.32028]
[1726000354867,0.004,57785.0,57773.0,0.086541]
[1726000354868,0.1308368,57774.0,57773.0,0.086541]
[1726000355067,0.10277706,57775.0,57774.0,0.086539]
[1726000355376,0.02805481,57775.0,57774.0,0.086539]
[1726000355673,0.10277706,57777.0,57776.0,0.086536]
[1726000356063,0.13083189,57778.0,57770.0,0.27076]
[1726000356272,0.10277706,57778.0,57777.0,0.086535]
[1726000356474,0.02805472,57778.0,57777.0,0.086535]
[1726000357779,0.02805472,57778.0,57777.0,0.0647]
[1726000357974,0.02805472,57778.0,57777.0,0.0657]
[1726000358273,0.10262747,57778.0,57777.0,0.152235]
[1726000358475,0.13068219,57778.0,57777.0,0.152235]
[1726000358870,0.13068219,57778.0,57777.0,0.153235]
[1726000359280,0.02805472,57778.0,57777.0,0.153235]
[1726000361278,0.10222794,57779.0,57778.0,0.086533]
[1726000361584,0.086533,57778.0,57777.0,0.0667]
[1726000362268,0.086533,57778.0,57777.0,0.0657]
[1726000362780,0.086533,57778.0,57777.0,0.152235]
[1726000363174,0.086533,57778.0,57777.0,0.153235]
[1726000363375,0.086533,57778.0,57777.0,0.152235]
[1726000363880,0.086533,57778.0,57777.0,0.153235]
[1726000367182,0.173066,57778.0,57777.0,0.002]
[1726000369281,0.31857017,57778.0,57777.0,0.002]
[1726000369481,0.38457017,57778.0,57777.0,0.00070442]
[1726000369783,0.90381017,57778.0,57777.0,0.00070442]
[1726000370274,1.02354367,57778.0,57777.0,0.00070442]
[1726000371178,0.90358113,57778.0,57777.0,0.00070442]
[1726000372785,0.90358113,57778.0,57777.0,0.00024911]
[1726000374986,0.38434113,57778.0,57777.0,0.00024911]
[1726000375484,0.50407463,57778.0,57777.0,0.00024911]
[1726000376186,0.38434113,57778.0,57777.0,0.00024911]
[1726000376388,0.299466,57778.0,57777.0,0.00024911]
[1726000376884,0.086533,57778.0,57777.0,0.00024911]
[1726000377280,0.173066,57778.0,57777.0,0.00024911]
[1726000377492,0.086533,57778.0,57777.0,0.00024911]
[1726000379384,0.086533,57778.0,57777.0,0.06936159]
[1726000379891,0.086533,57778.0,57777.0,0.00024911]
[1726000380185,0.086533,57778.0,57777.0,0.06936159]
[1726000380393,0.086533,57778.0,57777.0,0.00024911]
[1726000383485,0.086533,57778.0,57777.0,0.08678411]
[1726000383890,0.086533,57778.0,57777.0,0.00024911]
[1726000384387,0.23759259,57778.0,57777.0,0.00024911]
[1726000384790,0.23759422,57778.0,57777.0,0.00024911]
[1726000387285,0.37494277,57778.0,57777.0,0.00024911]
[1726000387893,0.086538,57775.0,57774.0,0.086539]
[1726000388089,0.11459478,57775.0,57774.0,0.086539]
[1726000388390,0.18068031,57775.0,57774.0,0.086539]
[1726000388698,0.23759922,57775.0,57774.0,0.086539]
[1726000389997,0.23759922,57775.0,57774.0,0.087539]
[1726000390796,0.23759922,57775.0,57774.0,0.088539]
[1726000391296,0.14345691,57775.0,57774.0,0.088539]
[1726000391489,0.086538,57775.0,57774.0,0.18977035]
[1726000392185,0.173076,57775.0,57774.0,0.10323135]
[1726000392387,0.173076,57775.0,57774.0,0.18973666]
[1726000392695,0.173076,57775.0,57774.0,0.08850531]
[1726000393897,0.173076,57775.0,57770.0,0.146744]
[1726000393898,1.11928,57775.0,57770.0,0.08650531]
[1726000394095,0.17309,57770.0,57769.0,0.08650531]
[1726000394293,0.173094,57769.0,57768.0,0.08650531]
[1726000394595,0.445541,57769.0,57768.0,0.08650531]
[1726000394990,0.445541,57769.0,57766.0,0.08650531]
[1726000394991,0.1731,57767.0,57766.0,0.08650531]
[1726000395296,0.2931,57767.0,57766.0,0.08650531]
[1726000395494,0.086558,57762.0,57761.0,0.10380013]
[1726000395794,0.206558,57762.0,57761.0,0.20541714]
[1726000396098,0.086558,57762.0,57761.0,0.10161701]
[1726000396685,0.086558,57762.0,57761.0,0.10261701]
[1726000397693,0.086558,57762.0,57761.0,0.10361701]
[1726000399588,0.086558,57762.0,57761.0,0.10369142]
[1726000399885,0.10574851,57762.0,57761.0,0.10369142]
[1726000400093,0.19230651,57762.0,57761.0,0.002]
[1726000400897,0.19230651,57762.0,57761.0,0.07111278]
[1726000401092,0.19230651,57762.0,57761.0,0.07110975]
[1726000402700,0.19230651,57762.0,57761.0,0.002]
[1726000402900,0.27886451,57762.0,57761.0,0.002]
[1726000403397,0.27886451,57762.0,57761.0,0.05381031]
[1726000403591,0.27886451,57762.0,57761.0,0.002]
[1726000403793,0.34406451,57762.0,57761.0,0.002]
[1726000412701,0.40876451,57762.0,57761.0,0.002]
[1726000415819,0.259704,57755.0,57754.0,0.05181031]
[1726000416014,0.259704,57755.0,57751.0,0.06910975]
[1726000416015,0.286568,57755.0,57751.0,0.05174803]
[1726000416216,0.286568,57755.0,57750.0,0.05174803]
[1726000416217,0.173148,57751.0,57750.0,0.05174803]
[1726000416513,0.173148,57751.0,57748.0,0.1272]
[1726000416514,0.086573,57752.0,57749.0,0.086576]
[1726000416724,0.086573,57752.0,57748.0,0.19630975]